[Event "Titled Tuesday Blitz March 21 Early 2023"]
[White "Jeet, Jain"]
[Black "cryptoguru02"]
[WhiteFideId "5073022"]
[WhiteElo "2067"]
[BlackElo "2462"]
[Result "1-0"]
[Round "09"]
[TimeControl "180+2"]
[Date "2023.03.21"]
[WhiteClock "0:01:59"]
[BlackClock "0:00:17"]

1. Nf3 {[%clk 0:03:00]}  d5 {[%clk 0:02:57]} 2. g3 {[%clk 0:03:01]}  Bg4 {[%clk 0:02:54]} 3. Bg2 {[%clk 0:03:01]}  c6 {[%clk 0:02:50]} 4. O-O {[%clk 0:03:01]}  Nd7 {[%clk 0:02:49]} 5. d4 {[%clk 0:03:01]}  e6 {[%clk 0:02:48]} 6. c4 {[%clk 0:03:01]}  Ngf6 {[%clk 0:02:46]} 7. Nc3 {[%clk 0:03:00]}  Bd6 {[%clk 0:02:41]} 8. Nd2 {[%clk 0:02:57]}  O-O {[%clk 0:02:36]} 9. Qb3 {[%clk 0:02:55]}  Qb6 {[%clk 0:02:34]} 10. c5 {[%clk 0:02:55]}  Qxb3 {[%clk 0:02:33]} 11. axb3 {[%clk 0:02:56]}  Bc7 {[%clk 0:02:32]} 12. f3 {[%clk 0:02:57]}  Bh5 {[%clk 0:02:31]} 13. b4 {[%clk 0:02:57]}  a6 {[%clk 0:02:30]} 14. e4 {[%clk 0:02:49]}  dxe4 {[%clk 0:02:16]} 15. fxe4 {[%clk 0:02:47]}  Rad8 {[%clk 0:02:04]} 16. Nc4 {[%clk 0:02:38]}  Bg6 {[%clk 0:01:47]} 17. Be3 {[%clk 0:02:34]}  Ng4 {[%clk 0:01:44]} 18. Bg5 {[%clk 0:02:29]}  f6 {[%clk 0:01:40]} 19. Bc1 {[%clk 0:02:24]}  Bf7 {[%clk 0:01:36]} 20. h3 {[%clk 0:02:23]}  Nh6 {[%clk 0:01:36]} 21. Bxh6 {[%clk 0:02:23]}  gxh6 {[%clk 0:01:37]} 22. Rad1 {[%clk 0:02:23]}  Bxg3 {[%clk 0:01:32]} 23. d5 {[%clk 0:02:08]}  exd5 {[%clk 0:01:25]} 24. exd5 {[%clk 0:02:09]}  Kg7 {[%clk 0:00:40]} 25. Ne3 {[%clk 0:02:08]}  Be5 {[%clk 0:00:21]} 26. dxc6 {[%clk 0:02:04]}  bxc6 {[%clk 0:00:21]} 27. Bxc6 {[%clk 0:02:05]}  Nb8 {[%clk 0:00:21]} 28. Be4 {[%clk 0:02:02]}  Bd4 {[%clk 0:00:20]} 29. Rxd4 {[%clk 0:02:01]}  Rxd4 {[%clk 0:00:19]} 30. Nf5+ {[%clk 0:02:02]}  Kh8 {[%clk 0:00:19]} 31. Nxd4 {[%clk 0:02:03]}  Rd8 {[%clk 0:00:18]} 32. Rd1 {[%clk 0:02:00]}  f5 {[%clk 0:00:16]} 33. Nxf5 {[%clk 0:02:00]}  Re8 {[%clk 0:00:17]} 34. c6 {[%clk 0:01:59]} 1-0


[Site "https://www.chess.com"]

[Event "Titled Tuesday Blitz March 21 Early 2023"]
[White "Tomaszewski, Kacper"]
[Black "Diaz Rosas, Julio Cesar"]
[WhiteFideId "1127373"]
[BlackFideId "5105099"]
[WhiteElo "2211"]
[BlackElo "2270"]
[Result "1-0"]
[Round "09"]
[TimeControl "180+2"]
[Date "2023.03.21"]
[WhiteClock "0:01:41"]
[BlackClock "0:00:12"]

1. e4 {[%clk 0:03:00]}  c5 {[%clk 0:00:14]} 2. Nc3 {[%clk 0:03:01]}  d6 {[%clk 0:00:14]} 3. g3 {[%clk 0:03:01]}  Nc6 {[%clk 0:00:14]} 4. Bg2 {[%clk 0:03:01]}  g6 {[%clk 0:00:15]} 5. Nge2 {[%clk 0:03:02]}  Bg7 {[%clk 0:00:15]} 6. d3 {[%clk 0:03:03]}  e6 {[%clk 0:00:16]} 7. h4 {[%clk 0:03:03]}  h5 {[%clk 0:00:15]} 8. Bg5 {[%clk 0:03:02]}  Nge7 {[%clk 0:00:15]} 9. Qd2 {[%clk 0:03:02]}  Qa5 {[%clk 0:00:15]} 10. O-O {[%clk 0:02:57]}  Rb8 {[%clk 0:00:14]} 11. a3 {[%clk 0:02:47]}  Nd4 {[%clk 0:00:13]} 12. Bxe7 {[%clk 0:02:34]}  Nxe2+ {[%clk 0:00:11]} 13. Kh2 {[%clk 0:02:17]}  Nxc3 {[%clk 0:00:10]} 14. Bxd6 {[%clk 0:02:13]}  Ra8 {[%clk 0:00:11]} 15. bxc3 {[%clk 0:02:06]}  Bxc3 {[%clk 0:00:12]} 16. Qg5 {[%clk 0:02:06]}  Kd7 {[%clk 0:00:11]} 17. Qe7+ {[%clk 0:02:06]}  Kc6 {[%clk 0:00:11]} 18. e5+ {[%clk 0:02:04]}  Kb5 {[%clk 0:00:12]} 19. Rfb1+ {[%clk 0:01:58]}  Ka4 {[%clk 0:00:12]} 20. Bc7 {[%clk 0:01:44]}  Qa6 {[%clk 0:00:12]} 21. Qxc5 {[%clk 0:01:41]} 1-0


[Site "https://www.chess.com"]

[Event "Titled Tuesday Blitz March 21 Early 2023"]
[White "Fernandez Hernandez, Arturo A."]
[Black "Derjabin, Ilja"]
[WhiteFideId "3509230"]
[BlackFideId "14104768"]
[WhiteElo "2393"]
[BlackElo "2309"]
[Result "1-0"]
[Round "09"]
[TimeControl "180+2"]
[Date "2023.03.21"]
[WhiteClock "0:02:09"]
[BlackClock "0:00:29"]

1. e4 {[%clk 0:03:00]}  c5 {[%clk 0:02:18]} 2. Nc3 {[%clk 0:03:00]}  d6 {[%clk 0:02:16]} 3. f4 {[%clk 0:02:59]}  Nc6 {[%clk 0:02:16]} 4. Nf3 {[%clk 0:03:00]}  Bg4 {[%clk 0:02:13]} 5. h3 {[%clk 0:02:59]}  Bxf3 {[%clk 0:02:13]} 6. Qxf3 {[%clk 0:03:00]}  g6 {[%clk 0:02:13]} 7. Bb5 {[%clk 0:02:56]}  Rc8 {[%clk 0:02:05]} 8. O-O {[%clk 0:02:56]}  Bg7 {[%clk 0:02:04]} 9. d3 {[%clk 0:02:56]}  a6 {[%clk 0:01:57]} 10. Bxc6+ {[%clk 0:02:56]}  Rxc6 {[%clk 0:01:56]} 11. Be3 {[%clk 0:02:52]}  Nf6 {[%clk 0:01:50]} 12. e5 {[%clk 0:02:50]}  Nd7 {[%clk 0:01:46]} 13. exd6 {[%clk 0:02:45]}  exd6 {[%clk 0:01:45]} 14. f5 {[%clk 0:02:39]}  O-O {[%clk 0:01:40]} 15. Nd5 {[%clk 0:02:32]}  Bxb2 {[%clk 0:00:41]} 16. Rab1 {[%clk 0:02:31]}  Bd4 {[%clk 0:00:38]} 17. Bxd4 {[%clk 0:02:30]}  cxd4 {[%clk 0:00:38]} 18. Rxb7 {[%clk 0:02:29]}  Rxc2 {[%clk 0:00:34]} 19. Rxd7 {[%clk 0:02:25]}  Qg5 {[%clk 0:00:33]} 20. fxg6 {[%clk 0:02:17]}  hxg6 {[%clk 0:00:33]} 21. Rxf7 {[%clk 0:02:11]}  Rxg2+ {[%clk 0:00:28]} 22. Qxg2 {[%clk 0:02:08]}  Qxg2+ {[%clk 0:00:28]} 23. Kxg2 {[%clk 0:02:09]}  Rxf7 {[%clk 0:00:28]} 24. Rxf7 {[%clk 0:02:09]}  Kxf7 {[%clk 0:00:29]} 1-0


[Site "https://www.chess.com"]

[Event "Titled Tuesday Blitz March 21 Early 2023"]
[White "Rios Escobar, Adan"]
[Black "Degenbaev, Aziz"]
[WhiteFideId "3403645"]
[BlackFideId "13802640"]
[WhiteElo "2417"]
[BlackElo "2152"]
[Result "0-1"]
[Round "09"]
[TimeControl "180+2"]
[Date "2023.03.21"]
[WhiteClock "0:00:03"]
[BlackClock "0:00:19"]

1. d4 {[%clk 0:03:00]}  Nf6 {[%clk 0:02:59]} 2. g3 {[%clk 0:03:01]}  c5 {[%clk 0:02:59]} 3. d5 {[%clk 0:03:01]}  g6 {[%clk 0:02:43]} 4. c4 {[%clk 0:02:59]}  d6 {[%clk 0:02:39]} 5. Nc3 {[%clk 0:02:59]}  Bg7 {[%clk 0:02:36]} 6. Nf3 {[%clk 0:03:00]}  O-O {[%clk 0:02:26]} 7. Bg2 {[%clk 0:03:01]}  e6 {[%clk 0:02:15]} 8. O-O {[%clk 0:03:01]}  Re8 {[%clk 0:02:11]} 9. Re1 {[%clk 0:02:59]}  exd5 {[%clk 0:01:53]} 10. cxd5 {[%clk 0:03:00]}  a6 {[%clk 0:01:53]} 11. a4 {[%clk 0:02:58]}  Nbd7 {[%clk 0:01:54]} 12. h3 {[%clk 0:02:52]}  Rb8 {[%clk 0:01:53]} 13. Bf4 {[%clk 0:02:48]}  Nb6 {[%clk 0:01:43]} 14. e4 {[%clk 0:02:40]}  Nh5 {[%clk 0:01:34]} 15. Bg5 {[%clk 0:02:37]}  Qc7 {[%clk 0:01:29]} 16. g4 {[%clk 0:02:00]}  Nf6 {[%clk 0:01:29]} 17. e5 {[%clk 0:02:00]}  dxe5 {[%clk 0:01:22]} 18. d6 {[%clk 0:02:00]}  Qd8 {[%clk 0:01:23]} 19. Nxe5 {[%clk 0:01:58]}  h6 {[%clk 0:01:23]} 20. Bf4 {[%clk 0:01:54]}  Be6 {[%clk 0:01:18]} 21. a5 {[%clk 0:01:34]}  Nbd7 {[%clk 0:01:16]} 22. Nf3 {[%clk 0:01:06]}  b5 {[%clk 0:01:13]} 23. axb6 {[%clk 0:00:55]}  Rxb6 {[%clk 0:01:10]} 24. Qd2 {[%clk 0:00:55]}  g5 {[%clk 0:01:09]} 25. Bg3 {[%clk 0:00:51]}  Qb8 {[%clk 0:01:05]} 26. Na4 {[%clk 0:00:49]}  Rb4 {[%clk 0:01:02]} 27. Re2 {[%clk 0:00:21]}  Ne4 {[%clk 0:00:59]} 28. Rxe4 {[%clk 0:00:16]}  Rxe4 {[%clk 0:01:00]} 29. Nxg5 {[%clk 0:00:16]}  Rxa4 {[%clk 0:01:00]} 30. Rxa4 {[%clk 0:00:12]}  hxg5 {[%clk 0:01:00]} 31. Qxg5 {[%clk 0:00:08]}  Qxb2 {[%clk 0:00:56]} 32. Rxa6 {[%clk 0:00:08]}  Qf6 {[%clk 0:00:54]} 33. Qe3 {[%clk 0:00:07]}  c4 {[%clk 0:00:52]} 34. Be4 {[%clk 0:00:06]}  c3 {[%clk 0:00:51]} 35. Rc6 {[%clk 0:00:06]}  Qd4 {[%clk 0:00:48]} 36. Qf3 {[%clk 0:00:03]}  Be5 {[%clk 0:00:22]} 37. Bc2 {[%clk 0:00:03]}  Bxg3 {[%clk 0:00:19]} 38. Qxg3 {[%clk 0:00:04]}  Bd5 {[%clk 0:00:18]} 39. Rc7 {[%clk 0:00:04]}  Re1+ {[%clk 0:00:18]} 40. Kh2 {[%clk 0:00:03]}  Rh1# {[%clk 0:00:19]} 0-1


[Site "https://www.chess.com"]

[Event "Titled Tuesday Blitz March 21 Early 2023"]
[White "Meunier-Pion, Jean"]
[Black "Lehtosaari, Mauri"]
[WhiteFideId "20685327"]
[BlackFideId "501999"]
[WhiteElo "2124"]
[BlackElo "2525"]
[Result "0-1"]
[Round "09"]
[TimeControl "180+2"]
[Date "2023.03.21"]
[WhiteClock "0:00:06"]
[BlackClock "0:00:08"]

1. e4 {[%clk 0:03:00]}  e6 {[%clk 0:02:53]} 2. d4 {[%clk 0:03:00]}  d5 {[%clk 0:02:54]} 3. Nd2 {[%clk 0:03:01]}  dxe4 {[%clk 0:02:53]} 4. Nxe4 {[%clk 0:03:01]}  Nd7 {[%clk 0:02:53]} 5. Nf3 {[%clk 0:03:00]}  Ngf6 {[%clk 0:02:51]} 6. Nxf6+ {[%clk 0:02:52]}  Nxf6 {[%clk 0:02:50]} 7. c3 {[%clk 0:02:52]}  c5 {[%clk 0:02:44]} 8. Bg5 {[%clk 0:02:38]}  cxd4 {[%clk 0:02:41]} 9. Nxd4 {[%clk 0:02:29]}  Be7 {[%clk 0:02:37]} 10. Be2 {[%clk 0:02:10]}  O-O {[%clk 0:02:37]} 11. O-O {[%clk 0:02:09]}  Bd7 {[%clk 0:02:21]} 12. Bf3 {[%clk 0:02:07]}  Qc7 {[%clk 0:02:15]} 13. g3 {[%clk 0:01:50]}  Rfd8 {[%clk 0:02:01]} 14. Qe2 {[%clk 0:01:50]}  a6 {[%clk 0:01:52]} 15. Nf5 {[%clk 0:01:43]}  Bb5 {[%clk 0:01:31]} 16. Nxe7+ {[%clk 0:01:43]}  Qxe7 {[%clk 0:01:31]} 17. c4 {[%clk 0:01:43]}  Bc6 {[%clk 0:01:28]} 18. Bxc6 {[%clk 0:01:38]}  bxc6 {[%clk 0:01:29]} 19. Qf3 {[%clk 0:01:34]}  Rac8 {[%clk 0:01:19]} 20. Rfd1 {[%clk 0:01:26]}  Rxd1+ {[%clk 0:01:17]} 21. Rxd1 {[%clk 0:01:26]}  h6 {[%clk 0:01:17]} 22. Bxf6 {[%clk 0:01:26]}  gxf6 {[%clk 0:01:13]} 23. Qg4+ {[%clk 0:01:26]}  Kh7 {[%clk 0:01:08]} 24. Qe4+ {[%clk 0:01:17]}  Kg7 {[%clk 0:01:04]} 25. Qg4+ {[%clk 0:01:11]}  Kh7 {[%clk 0:01:03]} 26. Qd4 {[%clk 0:01:12]}  Kg7 {[%clk 0:01:03]} 27. Qd6 {[%clk 0:01:03]}  Qb7 {[%clk 0:00:52]} 28. b3 {[%clk 0:00:58]}  a5 {[%clk 0:00:48]} 29. Rd4 {[%clk 0:00:43]}  h5 {[%clk 0:00:42]} 30. Rh4 {[%clk 0:00:26]}  Qb4 {[%clk 0:00:32]} 31. Qd1 {[%clk 0:00:17]}  Rh8 {[%clk 0:00:23]} 32. Kg2 {[%clk 0:00:18]}  Qc5 {[%clk 0:00:22]} 33. Qf3 {[%clk 0:00:17]}  a4 {[%clk 0:00:20]} 34. bxa4 {[%clk 0:00:16]}  Rh6 {[%clk 0:00:20]} 35. Qc3 {[%clk 0:00:14]}  Rg6 {[%clk 0:00:19]} 36. Rf4 {[%clk 0:00:14]}  e5 {[%clk 0:00:17]} 37. Re4 {[%clk 0:00:08]}  Rh6 {[%clk 0:00:13]} 38. a5 {[%clk 0:00:08]}  Rh8 {[%clk 0:00:13]} 39. a6 {[%clk 0:00:08]}  Ra8 {[%clk 0:00:13]} 40. Rh4 {[%clk 0:00:08]}  Rxa6 {[%clk 0:00:11]} 41. Rxh5 {[%clk 0:00:07]}  Ra4 {[%clk 0:00:10]} 42. Qc1 {[%clk 0:00:05]}  Kf8 {[%clk 0:00:07]} 43. Rh8+ {[%clk 0:00:05]}  Ke7 {[%clk 0:00:07]} 44. Rh4 {[%clk 0:00:06]}  Rxa2 {[%clk 0:00:07]} 45. Qf1 {[%clk 0:00:02]}  Rc2 {[%clk 0:00:04]} 46. Kh1 {[%clk 0:00:02]}  Qa3 {[%clk 0:00:03]} 47. Qe1 {[%clk 0:00:02]}  Rc1 {[%clk 0:00:03]} 48. Re4 {[%clk 0:00:01]}  Rxe1+ {[%clk 0:00:04]} 49. Rxe1 {[%clk 0:00:02]}  Qc3 {[%clk 0:00:04]} 50. Re3 {[%clk 0:00:02]}  Qxc4 {[%clk 0:00:05]} 51. Kg2 {[%clk 0:00:03]}  Qd4 {[%clk 0:00:05]} 52. h4 {[%clk 0:00:03]}  c5 {[%clk 0:00:06]} 53. h5 {[%clk 0:00:03]}  Kf8 {[%clk 0:00:06]} 54. g4 {[%clk 0:00:02]}  Kg7 {[%clk 0:00:06]} 55. Kf1 {[%clk 0:00:02]}  c4 {[%clk 0:00:07]} 56. Rg3 {[%clk 0:00:02]}  c3 {[%clk 0:00:07]} 57. Rxc3 {[%clk 0:00:02]}  Qxc3 {[%clk 0:00:07]} 58. Kg2 {[%clk 0:00:02]}  Kh6 {[%clk 0:00:07]} 59. Kh2 {[%clk 0:00:02]}  Kg5 {[%clk 0:00:07]} 60. f3 {[%clk 0:00:03]}  Qxf3 {[%clk 0:00:06]} 61. Kg1 {[%clk 0:00:04]}  Qe2 {[%clk 0:00:06]} 62. Kh1 {[%clk 0:00:04]}  Kxg4 {[%clk 0:00:06]} 63. h6 {[%clk 0:00:05]}  Kg3 {[%clk 0:00:07]} 64. h7 {[%clk 0:00:06]}  Qe1# {[%clk 0:00:08]} 0-1


[Site "https://www.chess.com"]

[Event "Titled Tuesday Blitz March 21 Early 2023"]
[White "Rom, Jasper"]
[Black "Melikhov, Evgeny V."]
[WhiteFideId "2023733"]
[BlackFideId "4122046"]
[WhiteElo "2233"]
[BlackElo "2158"]
[Result "0-1"]
[Round "09"]
[TimeControl "180+2"]
[Date "2023.03.21"]
[WhiteClock "0:00:01"]
[BlackClock "0:00:38"]

1. e4 {[%clk 0:02:55]}  e5 {[%clk 0:02:59]} 2. Nf3 {[%clk 0:02:54]}  Nc6 {[%clk 0:02:59]} 3. Bb5 {[%clk 0:02:55]}  a6 {[%clk 0:02:59]} 4. Bxc6 {[%clk 0:02:55]}  dxc6 {[%clk 0:02:59]} 5. O-O {[%clk 0:02:55]}  f6 {[%clk 0:03:00]} 6. d4 {[%clk 0:02:55]}  exd4 {[%clk 0:03:00]} 7. Nxd4 {[%clk 0:02:56]}  c5 {[%clk 0:03:00]} 8. Ne2 {[%clk 0:02:56]}  Qxd1 {[%clk 0:03:00]} 9. Rxd1 {[%clk 0:02:57]}  Bd7 {[%clk 0:03:00]} 10. Bf4 {[%clk 0:02:57]}  O-O-O {[%clk 0:03:00]} 11. Nbc3 {[%clk 0:02:57]}  Be6 {[%clk 0:02:53]} 12. Rxd8+ {[%clk 0:02:55]}  Kxd8 {[%clk 0:02:53]} 13. Rd1+ {[%clk 0:02:55]}  Kc8 {[%clk 0:02:54]} 14. Nd5 {[%clk 0:02:56]}  Bxd5 {[%clk 0:02:54]} 15. Rxd5 {[%clk 0:02:55]}  b6 {[%clk 0:02:54]} 16. Nc3 {[%clk 0:02:47]}  Ne7 {[%clk 0:02:54]} 17. Rd1 {[%clk 0:02:45]}  g5 {[%clk 0:02:34]} 18. Bg3 {[%clk 0:02:43]}  h5 {[%clk 0:02:34]} 19. h3 {[%clk 0:02:39]}  h4 {[%clk 0:02:16]} 20. Bh2 {[%clk 0:02:39]}  Bg7 {[%clk 0:01:58]} 21. Nd5 {[%clk 0:02:34]}  Nxd5 {[%clk 0:01:57]} 22. Rxd5 {[%clk 0:02:35]}  Rd8 {[%clk 0:01:54]} 23. Rxd8+ {[%clk 0:02:28]}  Kxd8 {[%clk 0:01:54]} 24. b3 {[%clk 0:02:25]}  b5 {[%clk 0:01:44]} 25. c4 {[%clk 0:02:24]}  Kd7 {[%clk 0:01:41]} 26. Kf1 {[%clk 0:02:22]}  c6 {[%clk 0:01:40]} 27. Ke2 {[%clk 0:02:22]}  Ke6 {[%clk 0:01:36]} 28. Kd3 {[%clk 0:02:22]}  f5 {[%clk 0:01:29]} 29. f3 {[%clk 0:02:04]}  f4 {[%clk 0:01:20]} 30. Bg1 {[%clk 0:01:53]}  Bf8 {[%clk 0:01:19]} 31. Bf2 {[%clk 0:01:54]}  Be7 {[%clk 0:01:18]} 32. Be1 {[%clk 0:01:54]}  Bf6 {[%clk 0:01:14]} 33. Ba5 {[%clk 0:01:49]}  Kd6 {[%clk 0:01:05]} 34. Bb6 {[%clk 0:01:45]}  Be7 {[%clk 0:01:04]} 35. a4 {[%clk 0:01:35]}  Bf6 {[%clk 0:01:03]} 36. Ba7 {[%clk 0:01:26]}  Be7 {[%clk 0:01:02]} 37. Bb8+ {[%clk 0:01:23]}  Ke6 {[%clk 0:01:02]} 38. Bc7 {[%clk 0:01:13]}  Kd7 {[%clk 0:00:59]} 39. Be5 {[%clk 0:01:13]}  Ke6 {[%clk 0:00:59]} 40. Bg7 {[%clk 0:01:08]}  Kf7 {[%clk 0:00:58]} 41. Bc3 {[%clk 0:01:07]}  Ke6 {[%clk 0:00:58]} 42. Ba5 {[%clk 0:00:46]}  Bf6 {[%clk 0:00:53]} 43. Bc7 {[%clk 0:00:36]}  Be7 {[%clk 0:00:50]} 44. e5 {[%clk 0:00:23]}  Kf5 {[%clk 0:00:48]} 45. Bd6 {[%clk 0:00:21]}  Bd8 {[%clk 0:00:48]} 46. Bxc5 {[%clk 0:00:11]}  Kxe5 {[%clk 0:00:48]} 47. Bd4+ {[%clk 0:00:12]}  Kf5 {[%clk 0:00:48]} 48. Bc5 {[%clk 0:00:11]}  Bf6 {[%clk 0:00:47]} 49. Bd6 {[%clk 0:00:10]}  Bb2 {[%clk 0:00:46]} 50. Bc7 {[%clk 0:00:09]}  Bf6 {[%clk 0:00:45]} 51. Bb6 {[%clk 0:00:10]}  Bb2 {[%clk 0:00:42]} 52. Bd4 {[%clk 0:00:07]}  Ba3 {[%clk 0:00:42]} 53. cxb5 {[%clk 0:00:04]}  cxb5 {[%clk 0:00:41]} 54. axb5 {[%clk 0:00:01]}  axb5 {[%clk 0:00:40]} 55. Bh8 {[%clk 0:00:01]}  Bc5 {[%clk 0:00:38]} 0-1


[Site "https://www.chess.com"]

[Event "Titled Tuesday Blitz March 21 Early 2023"]
[White "Mazurkiewicz, Michal"]
[Black "Ordekalog"]
[WhiteFideId "1124943"]
[WhiteElo "2054"]
[BlackElo "2570"]
[Result "0-1"]
[Round "09"]
[TimeControl "180+2"]
[Date "2023.03.21"]
[WhiteClock "0:00:02"]
[BlackClock "0:00:05"]

1. e4 {[%clk 0:02:59]}  d5 {[%clk 0:02:53]} 2. exd5 {[%clk 0:02:59]}  Qxd5 {[%clk 0:02:53]} 3. d3 {[%clk 0:03:00]}  Nf6 {[%clk 0:02:52]} 4. Nc3 {[%clk 0:03:00]}  Qa5 {[%clk 0:02:48]} 5. g3 {[%clk 0:03:00]}  c6 {[%clk 0:02:48]} 6. Nf3 {[%clk 0:03:00]}  Bg4 {[%clk 0:02:46]} 7. h3 {[%clk 0:02:58]}  Bxf3 {[%clk 0:02:45]} 8. Qxf3 {[%clk 0:02:59]}  e6 {[%clk 0:02:45]} 9. Bg2 {[%clk 0:02:59]}  Nbd7 {[%clk 0:02:44]} 10. O-O {[%clk 0:02:58]}  Be7 {[%clk 0:02:41]} 11. Bd2 {[%clk 0:02:54]}  Qc7 {[%clk 0:02:37]} 12. Ne4 {[%clk 0:02:52]}  Nxe4 {[%clk 0:02:35]} 13. dxe4 {[%clk 0:02:53]}  O-O {[%clk 0:02:34]} 14. Qe2 {[%clk 0:02:53]}  Rad8 {[%clk 0:02:23]} 15. Bc3 {[%clk 0:02:50]}  Bf6 {[%clk 0:02:20]} 16. Bxf6 {[%clk 0:02:48]}  Nxf6 {[%clk 0:02:21]} 17. e5 {[%clk 0:02:47]}  Nd5 {[%clk 0:02:16]} 18. a3 {[%clk 0:02:47]}  Rd7 {[%clk 0:02:16]} 19. c4 {[%clk 0:02:47]}  Ne7 {[%clk 0:02:15]} 20. Rfd1 {[%clk 0:02:43]}  Rfd8 {[%clk 0:02:15]} 21. f4 {[%clk 0:02:43]}  Nf5 {[%clk 0:02:13]} 22. Kh2 {[%clk 0:02:28]}  Nd4 {[%clk 0:02:08]} 23. Qg4 {[%clk 0:02:02]}  g6 {[%clk 0:02:07]} 24. Rd3 {[%clk 0:01:39]}  Nf5 {[%clk 0:01:55]} 25. Rxd7 {[%clk 0:01:36]}  Qxd7 {[%clk 0:01:54]} 26. Qe2 {[%clk 0:01:20]}  h5 {[%clk 0:01:50]} 27. g4 {[%clk 0:01:15]}  hxg4 {[%clk 0:01:44]} 28. hxg4 {[%clk 0:01:16]}  Nd4 {[%clk 0:01:31]} 29. Qe4 {[%clk 0:01:15]}  Kg7 {[%clk 0:01:28]} 30. c5 {[%clk 0:00:50]}  Qe7 {[%clk 0:01:21]} 31. Rd1 {[%clk 0:00:38]}  Qxc5 {[%clk 0:01:07]} 32. b4 {[%clk 0:00:38]}  Qc3 {[%clk 0:01:04]} 33. Kg1 {[%clk 0:00:26]}  b6 {[%clk 0:00:48]} 34. f5 {[%clk 0:00:26]}  exf5 {[%clk 0:00:22]} 35. gxf5 {[%clk 0:00:27]}  gxf5 {[%clk 0:00:20]} 36. Qe1 {[%clk 0:00:07]}  Qxa3 {[%clk 0:00:08]} 37. Rd2 {[%clk 0:00:03]}  Qc3 {[%clk 0:00:06]} 38. Qh4 {[%clk 0:00:02]}  Qxd2 {[%clk 0:00:06]} 39. Qf6+ {[%clk 0:00:02]}  Kh7 {[%clk 0:00:05]} 40. Qxf7+ {[%clk 0:00:02]}  Kh6 {[%clk 0:00:05]} 41. Qf6+ {[%clk 0:00:02]}  Kh5 {[%clk 0:00:04]} 42. Qf7+ {[%clk 0:00:02]}  Kg5 {[%clk 0:00:05]} 43. Qg7+ {[%clk 0:00:02]}  Kf4 {[%clk 0:00:02]} 44. Qh6+ {[%clk 0:00:02]}  Kxe5 {[%clk 0:00:03]} 45. Qxd2 {[%clk 0:00:01]}  Nf3+ {[%clk 0:00:03]} 46. Bxf3 {[%clk 0:00:02]}  Rxd2 {[%clk 0:00:03]} 47. Bxc6 {[%clk 0:00:02]}  Rb2 {[%clk 0:00:04]} 48. b5 {[%clk 0:00:03]}  f4 {[%clk 0:00:04]} 49. Kf1 {[%clk 0:00:03]}  Rc2 {[%clk 0:00:04]} 50. Ke1 {[%clk 0:00:03]}  a5 {[%clk 0:00:04]} 51. Kd1 {[%clk 0:00:03]}  Rh2 {[%clk 0:00:04]} 52. Ke1 {[%clk 0:00:02]}  Kd4 {[%clk 0:00:05]} 53. Kf1 {[%clk 0:00:02]}  a4 {[%clk 0:00:05]} 54. Kg1 {[%clk 0:00:02]}  Rb2 {[%clk 0:00:06]} 55. Kf1 {[%clk 0:00:02]}  a3 {[%clk 0:00:06]} 56. Be4 {[%clk 0:00:02]}  Kxe4 {[%clk 0:00:05]} 0-1


[Site "https://www.chess.com"]

[Event "Titled Tuesday Blitz March 21 Early 2023"]
[White "Tarasova, Viktoriya"]
[Black "Crevatin, Leo"]
[WhiteFideId "4175840"]
[BlackFideId "1726307"]
[WhiteElo "2182"]
[BlackElo "2190"]
[Result "0-1"]
[Round "09"]
[TimeControl "180+2"]
[Date "2023.03.21"]
[WhiteClock "0:00:03"]
[BlackClock "0:00:04"]

1. d4 {[%clk 0:03:00]}  Nf6 {[%clk 0:02:52]} 2. c4 {[%clk 0:03:00]}  e6 {[%clk 0:02:51]} 3. Nc3 {[%clk 0:02:59]}  Bb4 {[%clk 0:02:51]} 4. Nf3 {[%clk 0:03:00]}  O-O {[%clk 0:02:50]} 5. Bg5 {[%clk 0:02:59]}  b6 {[%clk 0:02:49]} 6. e3 {[%clk 0:02:59]}  Bb7 {[%clk 0:02:49]} 7. Bd3 {[%clk 0:02:59]}  d6 {[%clk 0:02:47]} 8. O-O {[%clk 0:02:57]}  Bxc3 {[%clk 0:02:45]} 9. bxc3 {[%clk 0:02:56]}  h6 {[%clk 0:02:45]} 10. Bh4 {[%clk 0:02:56]}  Nbd7 {[%clk 0:02:45]} 11. Nd2 {[%clk 0:02:55]}  e5 {[%clk 0:02:43]} 12. e4 {[%clk 0:02:49]}  Qe7 {[%clk 0:02:38]} 13. f3 {[%clk 0:02:45]}  Rfe8 {[%clk 0:02:30]} 14. Re1 {[%clk 0:02:44]}  Nf8 {[%clk 0:02:29]} 15. Bf2 {[%clk 0:02:40]}  Ne6 {[%clk 0:02:26]} 16. g3 {[%clk 0:02:39]}  c5 {[%clk 0:02:15]} 17. d5 {[%clk 0:02:39]}  Nf8 {[%clk 0:02:12]} 18. Nf1 {[%clk 0:02:37]}  Bc8 {[%clk 0:02:11]} 19. Ne3 {[%clk 0:02:36]}  g6 {[%clk 0:02:08]} 20. a4 {[%clk 0:02:36]}  N8h7 {[%clk 0:02:06]} 21. a5 {[%clk 0:02:33]}  Bd7 {[%clk 0:02:06]} 22. h4 {[%clk 0:02:30]}  Reb8 {[%clk 0:02:00]} 23. axb6 {[%clk 0:02:26]}  axb6 {[%clk 0:01:59]} 24. Qb3 {[%clk 0:02:18]}  Qd8 {[%clk 0:01:57]} 25. Qb2 {[%clk 0:02:14]}  Nf8 {[%clk 0:01:54]} 26. Reb1 {[%clk 0:02:07]}  Rxa1 {[%clk 0:01:52]} 27. Rxa1 {[%clk 0:02:07]}  Qc7 {[%clk 0:01:52]} 28. Nc2 {[%clk 0:01:59]}  Ne8 {[%clk 0:01:34]} 29. Ra3 {[%clk 0:01:52]}  Qc8 {[%clk 0:01:32]} 30. Qa1 {[%clk 0:01:41]}  Nc7 {[%clk 0:01:30]} 31. Qc1 {[%clk 0:01:21]}  Kh7 {[%clk 0:01:26]} 32. Be3 {[%clk 0:01:19]}  h5 {[%clk 0:01:26]} 33. Ra1 {[%clk 0:01:05]}  b5 {[%clk 0:01:26]} 34. cxb5 {[%clk 0:01:04]}  Bxb5 {[%clk 0:01:23]} 35. c4 {[%clk 0:00:52]}  Be8 {[%clk 0:01:20]} 36. Bf1 {[%clk 0:00:48]}  Na6 {[%clk 0:01:13]} 37. Bg5 {[%clk 0:00:43]}  Qb7 {[%clk 0:01:08]} 38. Ne3 {[%clk 0:00:28]}  Nb4 {[%clk 0:01:06]} 39. g4 {[%clk 0:00:25]}  f6 {[%clk 0:00:40]} 40. Bxf6 {[%clk 0:00:23]}  Qf7 {[%clk 0:00:39]} 41. Bg5 {[%clk 0:00:15]}  Qxf3 {[%clk 0:00:38]} 42. Ra7+ {[%clk 0:00:14]}  Kg8 {[%clk 0:00:36]} 43. Bg2 {[%clk 0:00:14]}  Qe2 {[%clk 0:00:32]} 44. Qf1 {[%clk 0:00:06]}  Qxf1+ {[%clk 0:00:32]} 45. Bxf1 {[%clk 0:00:05]}  Nh7 {[%clk 0:00:14]} 46. gxh5 {[%clk 0:00:05]}  Nxg5 {[%clk 0:00:14]} 47. hxg5 {[%clk 0:00:05]}  gxh5 {[%clk 0:00:14]} 48. Nf5 {[%clk 0:00:06]}  Bg6 {[%clk 0:00:10]} 49. Nxd6 {[%clk 0:00:06]}  Nc2 {[%clk 0:00:10]} 50. Bh3 {[%clk 0:00:05]}  Ne3 {[%clk 0:00:07]} 51. Be6+ {[%clk 0:00:04]}  Kh8 {[%clk 0:00:07]} 52. Nf7+ {[%clk 0:00:02]}  Bxf7 {[%clk 0:00:06]} 53. Rxf7 {[%clk 0:00:03]}  Nxc4 {[%clk 0:00:04]} 54. Bf5 {[%clk 0:00:03]}  Nd6 {[%clk 0:00:03]} 55. Rh7+ {[%clk 0:00:03]}  Kg8 {[%clk 0:00:04]} 0-1


[Site "https://www.chess.com"]